Cogmind - Beta 17 @@@ ROGUE MODE // 2026.07.01 @ 10:43:11 Player: 5H-4SQ Result: Destroyed by S-10 Pest with Light Assault Rifle Performance ------------- Evolutions (0) 0 Regions Visited (2) 400 Robots Destroyed (19) 95 Value Destroyed (396) 396 Prototype IDs (3) 60 Alien Tech Used (0) 0 Bonus (5250) 5250 TOTAL SCORE: 6201 Bonus ------- Prayed to X0-1V1 5000 Major X0-1V1 Interference 250 Cogmind --------- Core Integrity 0/150 Matter 140/150 Energy 899/900 System Corruption 5% Temperature Cool (0) Movement Core (100) Ox1 Location -10/Mines Parts ------- > --- POWER (1) -------- (None) > --- PROPULSION (2) --- (None) > --- UTILITY (2) ------ Small Storage Unit X0-1V1's Piety Tracker > --- WEAPON (2) ------- (None) > --- INVENTORY (8) ---- Wheel Wheel Seismic Detector ECM Suite Peak State ------------ > --- POWER ------------ Light Nuclear Core > --- PROPULSION ------- Aluminum Leg Aluminum Leg > --- UTILITY ---------- Small Storage Unit X0-1V1's Piety Tracker > --- WEAPON ----------- EM Pulse Gun Particle Gun > --- INVENTORY -------- Wheel Wheel Hover Unit Seismic Detector Grenade Launcher [Rating: 22] Favorites ----------- Power Ion Engine Engine Ion Engine Power Core Light Nuclear Core Propulsion Aluminum Leg Leg Aluminum Leg Hover Unit Hover Unit Utility Small Storage Unit Device Seismic Detector Storage Small Storage Unit Weapon EM Pulse Gun Energy Gun EM Pulse Gun Launcher Grenade Launcher Build | -11 -10 -10 ------- Run | Yrd Mat Min Slots Evolved . | . . . Power . | . . . Propulsion . | . . . Utility . | . . . Weapon . | . . . Parts Attached 14 | 7 4 3 Power 2 | 1 1 . Engine 1 | 1 . . Core 1 | . 1 . Reactor . | . . . Propulsion 4 | 2 . 2 Treads . | . . . Leg 2 | 2 . . Wheel . | . . . Hover 2 | . . 2 Flight . | . . . Utility 3 | 2 1 . Device 2 | 1 1 . Storage 1 | 1 . . Processor . | . . . Hackware . | . . . Protection . | . . . Artifact . | . . . Weapon 5 | 2 2 1 Energy Gun 4 | 2 2 . Energy Cannon . | . . . Ballistic Gun . | . . . Ballistic Cannon . | . . . Launcher 1 | . . 1 Special Weapon . | . . . Impact Weapon . | . . . Slashing Weapon . | . . . Piercing Weapon . | . . . Special Melee Weapon . | . . . Unidentified Prototypes 1 | . 1 . Corrupted Parts 2 | . 2 . System Corruption 5 | . 5 . Parts Lost 7 | . . 7 Power 1 | . . 1 Propulsion 3 | . . 3 Utility . | . . . Weapon 3 | . . 3 Highest Loss Streak 7 | . . 7 To Critical Strikes . | . . . Average Backups 4 | 1 4 5 Power . | . . . Propulsion 2 | 1 2 3 Utility . | . . 1 Weapon 1 | . 1 . Tool/Special . | . . . Unused Backups 4 | . 1 3 Power . | . . . Propulsion 2 | . . 2 Utility 1 | . . 1 Weapon 1 | . 1 . Tool/Special . | . . . Average Slot Usage (%) 96 | . 100 90 Engine 7 | . 10 . Core 6 | . 3 11 Leg 26 | . 28 23 Device 14 | . 14 14 Storage 14 | . 14 14 Energy Gun 22 | . 28 12 Launcher 3 | . . 11 Peak Build Rating 22 | 7 22 22 Average Rating 11 | 5 7 20 On Entrance 9 | . 7 22 Avg Prop Armor Cover (%) . | . . . Naked Turns . | . . . Heaviest Build 17 | 15 16 17 Greatest Support 20 | 20 20 20 Greatest Overweight (x) 1 | . . 1 Average Overweight (x) . | . . . Largest Inventory Capacity 8 | 8 8 8 Average Capacity 7 | 7 8 8 Most Carried 7 | 3 7 7 Average Carried 4 | 1 4 5 Final Capacity 8 | 8 8 8 Final Carried 5 | 3 5 4 Class Distribution -------------------- 100% | Mutant Dominant Class ---------------- Mutant | -10/Materials Mutant | -10/Mines Resources | -11 -10 -10 ----------- Run | Yrd Mat Min Matter Collected 370 | 270 50 50 Remotely . | . . . Salvage Created 541 | 128 267 146 Parts 42 | 11 20 11 Haulers Intercepted . | . . . Recyclers Shooed 1 | . 1 . Parts Field Recycled . | . . . Retrieved Matter . | . . . Parts Self-Destructed . | . . . Prevented . | . . . Parts Restored . | . . . Kills | -11 -10 -10 ------- Run | Yrd Mat Min Combat Hostiles Destroyed 11 | . 4 7 Guns 6 | . 4 2 AOE 5 | . . 5 Classes Destroyed 5 | 1 3 1 Worker 1 | . 1 . Tunneler 5 | 5 . . Watcher 2 | . 2 . Swarmer 3 | . . 3 Grunt 8 | . 4 4 Best Kill Streak 4 | 4 4 3 Combat Bots Only 3 | . 2 3 Max Kills in Single Turn 2 | 1 2 2 Gunslinging . | . . . Exploded 2 | . . 2 Melee . | . . . Uniques/NPCs Destroyed . | . . . Combat | -11 -10 -10 -------- Run | Yrd Mat Min Hostile Shots Fired 109 | . 25 84 Missed 28 | . 6 22 Hits 81 | . 19 62 Projectile 81 | . 19 62 Critical Strikes 1 | . 1 . Damage Taken 928 | . 260 668 Core 305 | . 43 262 Absorbed by Shields . | . . . Core Remaining (%) 100 | 100 . . Volleys Fired 42 | 8 20 14 Largest 2 | 2 2 2 Hottest 95 | 80 80 95 Shots Fired 76 | 16 40 20 Gun 70 | 16 40 14 Cannon . | . . . Launcher 6 | . . 6 Special . | . . . Kinetic . | . . . Thermal 12 | . . 12 Explosive 6 | . . 6 Electromagnetic 58 | 16 40 2 Robot Hit Streak 6 | 5 6 4 Robot Miss Streak 5 | 2 5 4 Penetration Max . | . . . Secondary Targets . | . . . Shots Hit Robots 39 | 8 20 11 Core Hits 26 | 5 13 8 Critical Kills . | . . . Critical Parts Destroyed . | . . . Critical Strikes 1 | . 1 . Corrupt 1 | . 1 . Melee Attacks . | . . . Impact . | . . . Slashing . | . . . Piercing . | . . . Sneak Attacks . | . . . Combat Hostiles . | . . . Follow-up Attacks . | . . . Damage Inflicted 1044 | 117 506 421 Guns 582 | 117 353 112 Cannons . | . . . Explosions 440 | . 153 287 Melee . | . . . Ramming 22 | . . 22 Kinetic . | . . . Thermal 241 | . 153 88 Explosive 287 | . . 287 Electromagnetic 494 | 117 353 24 Impact . | . . . Slashing . | . . . Piercing . | . . . Highest Corruption 5 | . 5 5 Average Corruption 4 | . 4 5 Corruption Purged . | . . . Corruption Blocked . | . . . Effects 10 | . 4 6 Message Errors 3 | . 2 1 Matter Fused 4 | . 1 3 Energy Discharges 3 | . 1 2 Overload Shots . | . . . Overflow Damage 14 | . 14 . Projectiles . | . . . Explosions 14 | . 14 . Melee . | . . . Knockbacks . | . . . Impact . | . . . Kinetic . | . . . Secondary . | . . . Self-Inflicted Damage 95 | . 20 75 Shots 4 | . 1 3 Rammed 8 | . . 8 Targets Rammed 8 | . . 8 Kicked . | . . . Crushed . | . . . Highest Temperature 255 | 90 231 255 Average Temperature 91 | 40 106 96 Received Heat Transfer 264 | . 156 108 Effects 1 | . 1 . Energy Bleed 1 | . 1 . Siege Activations . | . . . Martial Activations . | . . . Shielding Activations . | . . . Robots Disrupted . | . . . Combat Hostiles . | . . . Robots Corrupted . | . . . Combat Hostiles . | . . . Parts Fried . | . . . Impact Corruptions . | . . . Robots Melted . | . . . Combat Hostiles . | . . . Parts Melted . | . . . Heat Transferred 372 | . 150 222 Parts Sabotaged . | . . . Parts Stolen . | . . . Parts Stripped . | . . . Power Chain Reactions 2 | . 2 . Alert | -11 -10 -10 ------- Run | Yrd Mat Min Maximum Alert Level . | . . . Low Security (%) 100 | 100 100 100 Level 1 . | . . . Level 2 . | . . . Level 3 . | . . . Level 4 . | . . . Level 5 . | . . . High Security . | . . . Max Security . | . . . Peak Influence 97 | 15 57 97 Initial . | . . . Average 26 | 2 17 57 Influence Increases 361 | 25 152 184 Destroy 0b10 Robot/C 220 | . 80 140 Destroy 0b10 Robot/NC 40 | 25 15 . Destroy Leader 34 | . 24 10 Successful Hack 25 | . 25 . Destroy Structure 42 | . 8 34 Influence Decreases 361 | 25 152 184 Time Decay 297 | 25 152 120 Lost Part 64 | . . 64 Squads Dispatched . | . . . Investigation . | . . . Extermination . | . . . Reinforcement . | . . . Assault . | . . . Garrison . | . . . Intercept . | . . . Searches Triggered . | . . . Construction Impeded . | . . . Haulers Reinforced . | . . . Active Scanning Responses . | . . . Cargo Convoy Interrupts . | . . . Stealth | -11 -10 -10 --------- Run | Yrd Mat Min Distress Signals . | . . . Communications Jammed . | . . . Distress Signals . | . . . Times Spotted 23 | . 6 17 Peak Tracking Total 7 | . 3 7 Tactical Retreats . | . . . Traps | -11 -10 -10 ------- Run | Yrd Mat Min Traps Triggered . | . . . Indirectly . | . . . Trap Hack Attempts . | . . . Triggered . | . . . Disarmed . | . . . Reprogrammed . | . . . Reused . | . . . Traps Extracted . | . . . Installed . | . . . Triggered . | . . . Machines | -11 -10 -10 ---------- Run | Yrd Mat Min Machines Disabled . | . . . Max in Single Turn . | . . . Machines Repaired . | . . . Machines Dismantled . | . . . Machines Sabotaged . | . . . Overloaded Fab Kills . | . . . Hacking | -11 -10 -10 --------- Run | Yrd Mat Min Machines Accessed 5 | . 5 . Terminals 5 | . 5 . Fabricators . | . . . Repair Stations . | . . . Recycling Units . | . . . Scanalyzers . | . . . Garrison Access . | . . . Total Hacks 20 | . 20 . Successful 10 | . 10 . Failed 10 | . 10 . Catastrophic 2 | . 2 . Database Lockouts . | . . . Manual 13 | . 13 . Terminals 20 | . 20 . Fabricators . | . . . Repair Stations . | . . . Recycling Units . | . . . Scanalyzers . | . . . Garrison Access . | . . . Terminal Hacks 4 | . 4 . Prototype ID Bank 1 | . 1 . Alert Level 1 | . 1 . Zone Layout 2 | . 2 . Fabricator Hacks . | . . . Repair Station Hacks . | . . . Recycling Unit Hacks . | . . . Scanalyzer . | . . . Garrison Access Hacks . | . . . Unauthorized Hacks 6 | . 6 . Terminals 6 | . 6 . Assimilate 1 | . 1 . Botnet 5 | . 5 . Fabricators . | . . . Repair Stations . | . . . Recycling Units . | . . . Scanalyzers . | . . . Garrison Access . | . . . Data Cores Recovered . | . . . Used . | . . . Hacking Detections 5 | . 5 . Full Trace Events . | . . . Feedback Events . | . . . Feedback Blocked . | . . . Robot Schematics Acquired . | . . . Robots Built . | . . . Authchips . | . . . Time . | . . . Total Robot Build Rating . | . . . Part Schematics Acquired . | . . . Parts Built . | . . . Authchips . | . . . Time . | . . . Total Part Build Rating . | . . . Part Studies Acquired . | . . . Parts Repaired . | . . . Time . | . . . Parts Recycled . | . . . Recycled Matter . | . . . Retrieved Matter . | . . . Retrieved Components . | . . . Parts Scanalyzed . | . . . Part Schematics Acquired . | . . . Parts Damaged . | . . . Bothacking | -11 -10 -10 ------------ Run | Yrd Mat Min Used RIF Installer . | . . . Robots Hacked . | . . . Non-combat . | . . . Combat . | . . . Robot Hacks Applied . | . . . Relay Couplers Released . | . . . Fabnet Peak Effective % . | . . . Robots Rewired . | . . . Allies Hacked . | . . . Hacks Repelled . | . . . Allies | -11 -10 -10 -------- Run | Yrd Mat Min Total Allies . | . . . Largest Group . | . . . Highest-Rated Group . | . . . Highest-Rated Ally . | . . . Total Orders . | . . . Ally Attacks . | . . . Total Damage . | . . . Kills . | . . . Allies Corrupted . | . . . Allies Melted . | . . . X0-1V1 Amusement Gains 83 | . 13 70 Good Acts 3 | . . 3 Bad Acts 3 | . . 3 Intel | -11 -10 -10 ------- Run | Yrd Mat Min Active Infowar (turns) 558 | 32 526 . Seismic 558 | 32 526 . Robot Analysis Total . | . . . Derelict Logs Recovered . | . . . Drone Launches . | . . . Drone Recoveries . | . . . Exploration | -11 -10 -10 ------------- Run | Yrd Mat Min Turns Passed 926 | 123 539 264 Spaces Moved 598 | 74 329 195 Core 14 | 4 . 10 Treads . | . . . Legs 554 | 70 329 155 Wheels . | . . . Hover 30 | . . 30 Flight . | . . . Fastest Speed 50 | 50 120 56 Average Speed 116 | 116 120 110 Slowest Speed 190 | 120 120 190 Overloaded Moves . | . . . Propulsion Burnouts . | . . . Robots Hopped . | . . . Potential Cave-ins . | . . . Cave-ins Triggered . | . . . Exploration Rate (%) 26 | 4 36 40 Regions Visited 2 Branch Regions 1 Pre-discovered Areas . | . . . Known Exits Taken . | . . . Unknown Exits Taken 2 | 1 1 . Scrap Searched . | . . . Spaces Dug . | . . . Terrain Destroyed 48 | . 8 40 Melee . | . . . Projectile . | . . . AOE 48 | . 8 40 Terrain Rammed . | . . . Walls Destroyed . | . . . Machines Disabled . | . . . Actions | -11 -10 -10 --------- Run | Yrd Mat Min Total 747 | 91 432 224 Wait 70 | . 70 . Move 596 | 73 328 195 Hop . | . . . Pick Up 10 | 3 5 2 Fast Attach 7 | 7 . . Attach 3 | . . 3 Detach . | . . . Swap 6 | . 5 1 Drop 4 | . 4 . Fire 42 | 8 20 14 Melee . | . . . Ram 8 | . . 8 Kick . | . . . Crush . | . . . Escape Stasis . | . . . Rewire 1 | . . 1 Trap . | . . . Miscellaneous . | . . . Route ------- -11/Scrapyard -10/Materials (discovered 2 exits: [*Min] / [*Sub]) -10/Mines History --------- Turn | Location | Event 3 | -11/Scrapyard | Discovered new exit (range 15) 124 | -11/Scrapyard | Entered Materials 315 | -10/Materials | Build established: Mutant 509 | -10/Materials | Discovered new exit (range 12) 604 | -10/Materials | Discovered new exit (range 6) 618 | -10/Materials | Prayed at D.C.S.S. Altar Unit 663 | -10/Materials | Entered Mines 762 | -10/Mines | X0-1V1 sent hostile G-34 Mercenary (x3) 776 | -10/Mines | Energy generation permanently improved by X0-1V1 (+10; -100 max core) 886 | -10/Mines | Core integrity fell below 50% 910 | -10/Mines | Core integrity fell below 20% 917 | -10/Mines | X0-1V1 rescued you from certain death 927 | -10/Mines | Destroyed by S-10 Pest with Light Assault Rifle Last Messages --------------- 00896_ Hover Unit destroyed. 00898_ X0-1V1 imagines sitting ducks. G-47 Trooper suddenly freezes. S-10 Pest suddenly freezes. 00909_ K-01 Serf collects debris. 00911_ Slammed into S-10 Pest. 00915_ S-10 Pest destroyed. 00915_ Hover Unit destroyed. 00916_ K-01 Serf collects debris. 00916_ Slammed into S-10 Pest. 00917_ Destabilizing: Core damaged (-7). 00917_ X0-1V1 decides a favorite toy is worth saving for now. 00917_ Core integrity partially restored (64). The surroundings shift and blur. 00918_ Slammed into S-10 Pest. 00918_ Destabilizing: Core damaged (-1). 00919_ Slammed into S-10 Pest. 00924_ System corrupted: Matter fused (-10). 00927_ X0-1V1 guffaws! Map ----- +----------------------------------------------------+ | ??####???? ????????????????????????? | | ?????????? #???????????????????????? | | ?????????# ##??????????????????????? | | ????????? #??????????????????????? | | ????????# #??????????????????????? | | ???????? #??????????????????????? | | ???????? #####??????????????????? | | ??????## # #??????????????????? | | ?????## ##?????????????????? | | ????## [%??????????????????? | | ????# ????????????????????? | | ????? ??????????????????????? | | ?????? #????????????????????????? | | ??????# #??????????###########????? | | ??????# #???????????# #????? | | ??????# #???????????# #????? | | ??????# #???????????# """ """ #????? | | ??????# #?????#######*""" """ #????? | | ??????# #?????# % =%""" """ #????? | | ??????# #???### #####[ #????? | | ??????# #???# #???###########????? | | ??????# #???# ###??????????????????? | | ??????# #???#s#????????????????????? | | ??????# #?###s###??????????????????? | | ??????# ### s #???????????###????? | | ??????# @ ####???????# ###??? | | ??????# # ###????# ## | | ??????# #### t #?### """ | | ??????# #??# #### ### """ | | ??????# #??# ##?# """ | | ??????# #??########?# | | ??????# #???#######?##### | | ??????# #???????????????# ## | | ??????# #???????????????# #??? ##### | | ??????# ######??????????# #????????? | | ??????# #?????####?# ####?????? | | ??????# #### #????## ### ##????? | | ??????# #??# #???## #????? | | ??????# #?## ##### #????? | | ??????# ### [ #????? | | ?????## % #????? | | ?????# ##???? | | ?????# *%=##???? | | ?????# ######### %# #???? | | ?????# ###???????# =%[ #???? | | ?????## ##????????## #?### | | ??????## ##????????# ### | | ???????# #????????# ### | | ???????# #???????## | | ???????## ##????????### ] | +----------------------------------------------------+ Best States ------------- Heat Dissipation 25 Energy Generation 24 Energy Capacity 960 Matter Stores 300 Matter Capacity 300 Sight Range 16 Terrain Scan Density 10 Evasion (%) 55 Item Schematics ----------------- None Robot Schematics ------------------ None Fabricated ------------ Nothing Repaired ---------- Nothing Studied --------- None Alien Tech Used ----------------- None Achievements -------------- A Problem For Future Me Chaos Is Inevitable There's More Where That Came From Challenges ------------ None Game ------ Seed HardenedSupersonicSpear Manual? 0 Play Time 00:13:11 Cumulative 56.8 hours Start 2026.07.01 @ 10:32:50 End 2026.07.01 @ 10:43:11 Sessions 1 Manual Loads 0 Difficulty Rogue Special Mode None Game No. 78 Rogue 78 Adventurer 0 Explorer 0 Win Type - Total 0 Types 0/0/0/0/0/0/0/0/0/0 Lore% 38 Gallery% 34 Achievement% 21 Wizard Run 0 Options --------- Layout 1 ASCII 0 Keyboard 0 Movement Numpad Keybinds 0 Fullscreen 1 Font 24/Smallcaps Map View 50x35 Zoom Use 0% Tactical HUD 1 Map Filters NONE Filters NONE Steam 1 RUN: d375f24d-ac0e-4a83-bd94-55b7f9eb6d96